fUST/lending_fUST_20240105
["ID","MTS","AMOUNT","RATE_DAILY","PERIOD"]
[310214813,1704402647841,-155.56130441,0.00039,4]
[310214814,1704402647850,-1014.50906718,0.00039,10]
[310214815,1704402647858,-2032.89861869,0.00039,2]
[310214816,1704402647867,-1000.0,0.00039,39]
[310214817,1704402647876,-301.32802853,0.00039057,2]
[310214818,1704402647885,-350.0,0.00039148,7]
[310214819,1704402647894,-213.0,0.00039148,60]
[310214820,1704402647903,-285.0,0.00039148,60]
[310214821,1704402647912,-150.0,0.0003915,60]
[310214822,1704402647921,-13850.0,0.0003915,60]
[310214823,1704402647930,-350.0,0.00039158,7]
[310214824,1704402647939,-213.0,0.00039158,60]
[310214825,1704402647953,-285.0,0.00039158,60]
[310214826,1704402647962,-150.0,0.0003916,60]
[310214827,1704402647971,-13850.0,0.0003916,60]
[310214828,1704402647981,-180.83,0.00039168,60]
[310214829,1704402647990,-350.0,0.00039168,7]
[310214830,1704402647999,-213.0,0.00039168,60]
[310214831,1704402648008,-285.0,0.00039168,60]
[310214832,1704402648017,-259.17,0.0003917,60]
[310214833,1704402648026,-150.0,0.0003917,60]
[310214834,1704402648035,-13850.0,0.0003917,60]
[310214835,1704402648044,-500.0,0.00039178,7]
[310214836,1704402648053,-500.0,0.00039178,7]
[310214837,1704402648063,-500.0,0.00039178,7]
[310214838,1704402648072,-500.0,0.00039178,7]
[310214839,1704402648081,-257.96394501,0.00039178,7]
[310214840,1704402648157,-500.0,0.00039178,7]
[310214841,1704402648173,-301.39637935,0.00039178,7]
[310214842,1704402648183,-500.0,0.00039178,7]
[310214843,1704402648192,-1019.78,0.00039178,7]
[310214844,1704402648205,-500.0,0.00039178,7]
[310214845,1704402648214,-500.0,0.00039178,7]
[310214846,1704402648222,-833.25,0.00039178,7]
[310214847,1704402648232,-500.0,0.00039178,7]
[310214848,1704402648242,-500.0,0.00039178,7]
[310214849,1704402648251,-2856.90497968,0.00039178,10]
[310214850,1704402648263,-500.0,0.00039178,7]
[310214851,1704402648272,-1197.4,0.00039178,7]
[310214852,1704402648282,-500.0,0.00039178,7]
[310214854,1704402648292,-531.15,0.00039178,2]
[310214856,1704402648301,-500.0,0.00039178,7]
[310214858,1704402648310,-562.02261142,0.00039178,7]
[310214860,1704402648319,-606.91234233,0.00039178,7]
[310214862,1704402648328,-500.0,0.00039178,7]
[310214864,1704402648337,-500.0,0.00039178,7]
[310214866,1704402648346,-500.0,0.00039178,7]
[310214868,1704402648355,-545.36,0.00039178,7]
[310214870,1704402648364,-500.0,0.00039178,7]
[310214872,1704402648373,-500.0,0.00039178,7]
[310214873,1704402648382,-827.45,0.00039178,7]
[310214875,1704402648391,-500.0,0.00039178,7]
[310214877,1704402648401,-500.0,0.00039178,7]
[310214879,1704402648410,-500.0,0.00039178,7]
[310214881,1704402648419,-500.0,0.00039178,7]
[310214883,1704402648429,-500.0,0.00039178,7]
[310214885,1704402648439,-500.0,0.00039178,7]
[310214887,1704402648452,-1245.07,0.00039178,7]
[310214889,1704402648461,-500.0,0.00039178,7]
[310214891,1704402648470,-166.36146967,0.00039178,7]
[310214893,1704402648480,-825.19,0.00039178,7]
[310214895,1704402648489,-500.0,0.00039178,7]
[310214897,1704402648498,-500.0,0.00039178,7]
[310214899,1704402648507,-500.0,0.00039178,7]
[310214901,1704402648516,-500.0,0.00039178,7]
[310214903,1704402648525,-500.0,0.00039178,7]
[310214905,1704402648535,-575.43580268,0.00039178,7]
[310214907,1704402648544,-2473.66,0.00039178,7]
[310214909,1704402648553,-500.0,0.00039178,7]
[310214911,1704402648563,-500.0,0.00039178,7]
[310214913,1704402648572,-508.96262716,0.00039178,7]
[310214915,1704402648581,-689.61,0.00039178,7]
[310214917,1704402648590,-500.0,0.00039178,7]
[310214919,1704402648602,-492.39349911,0.00039178,7]
[310214921,1704402648611,-500.0,0.00039178,7]
[310214922,1704402648620,-437.78702758,0.00039178,7]
[310214924,1704402648629,-539.01754546,0.00039178,7]
[310214926,1704402648638,-500.0,0.00039178,7]
[310214928,1704402648648,-500.0,0.00039178,7]
[310214929,1704402648657,-564.95404721,0.00039178,7]
[310214931,1704402648667,-500.0,0.00039178,7]
[310214933,1704402648677,-1976.56,0.00039178,2]
[310214935,1704402648686,-500.0,0.00039178,7]
[310214936,1704402648696,-500.0,0.00039178,7]
[310214938,1704402648705,-500.0,0.00039178,7]
[310214940,1704402648715,-500.0,0.00039178,7]
[310214941,1704402648725,-500.0,0.00039178,2]
[310214942,1704402648734,-461.91547337,0.00039178,7]
[310214943,1704402648746,-1936.31,0.00039178,7]
[310214944,1704402648756,-961.52,0.00039178,7]
[310214945,1704402648767,-1091.4,0.00039178,7]
[310214946,1704402648778,-500.0,0.00039178,7]
[310214947,1704402648788,-500.0,0.00039178,7]
[310214948,1704402648798,-500.0,0.00039178,7]
[310214949,1704402648808,-1512.12,0.00039178,7]
[310214950,1704402648818,-500.0,0.00039178,7]
[310214951,1704402648827,-500.0,0.00039178,7]
[310214952,1704402648837,-661.26,0.00039178,7]
[310214953,1704402648846,-705.46,0.00039178,7]
[310214954,1704402648856,-502.72,0.00039178,7]
[310214955,1704402648866,-500.0,0.00039178,7]
[310214956,1704402648876,-192.02021402,0.00039178,7]
[310214957,1704402648885,-804.09,0.00039178,7]
[310214958,1704402648895,-500.0,0.00039178,7]
[310214959,1704402648904,-500.0,0.00039178,7]
[310214960,1704402648913,-500.0,0.00039178,7]
[310214961,1704402648923,-500.0,0.00039178,7]
[310214962,1704402648932,-500.0,0.00039178,7]
[310214963,1704402648941,-500.0,0.00039178,7]
[310214964,1704402648952,-500.0,0.00039178,7]
[310214965,1704402648962,-1531.92,0.00039178,7]
[310214966,1704402648973,-212.49443009,0.00039178,7]
[310214967,1704402648982,-500.0,0.00039178,7]
[310214968,1704402648991,-500.0,0.00039178,7]
[310214970,1704402649000,-514.494184,0.00039178,7]
[310214972,1704402649009,-500.0,0.00039178,7]
[310214974,1704402649018,-687.47,0.00039178,7]
[310214976,1704402649027,-500.0,0.00039178,7]
[310214978,1704402649036,-500.0,0.00039178,7]
[310214980,1704402649046,-528.7,0.00039178,7]
[310214982,1704402649056,-524.21871297,0.00039178,7]
[310214984,1704402649065,-500.0,0.00039178,7]
[310214986,1704402649074,-1000.0,0.00039178,2]
[310214988,1704402649084,-500.0,0.00039178,7]
[310214990,1704402649093,-500.0,0.00039178,7]
[310214992,1704402649102,-577.5,0.00039178,7]
[310214994,1704402649111,-779.47,0.00039178,7]
[310214996,1704402649121,-500.0,0.00039178,7]
[310214998,1704402649130,-500.0,0.00039178,7]
[310215000,1704402649139,-500.0,0.00039178,7]
[310215002,1704402649148,-500.0,0.00039178,7]
[310215004,1704402649157,-327.08886896,0.00039178,7]
[310215006,1704402649166,-500.0,0.00039178,7]
[310215008,1704402649175,-572.68,0.00039178,7]
[310215009,1704402649184,-876.01,0.00039178,7]
[310215011,1704402649196,-500.0,0.00039178,7]
[310215014,1704402649206,-500.0,0.00039178,7]
[310215016,1704402649215,-500.0,0.00039178,7]
[310215017,1704402649225,-500.0,0.00039178,7]
[310215019,1704402649235,-534.62,0.00039178,7]
[310215021,1704402649244,-864.97,0.00039178,7]
[310215024,1704402649254,-1586.66,0.00039178,7]
[310215026,1704402649263,-500.0,0.00039178,7]
[310215027,1704402649272,-500.0,0.00039178,7]
[310215029,1704402649281,-872.84,0.00039178,7]
[310215031,1704402649290,-500.0,0.00039178,7]
[310215033,1704402649299,-329.1053142,0.00039178,7]
[310215035,1704402649308,-3351.02,0.00039178,7]
[310215037,1704402649317,-500.0,0.00039178,7]
[310215039,1704402649328,-500.0,0.00039178,7]
[310215041,1704402649337,-500.0,0.00039178,7]
[310215043,1704402649346,-562.12,0.00039178,7]
[310215045,1704402649355,-4359.94,0.00039178,7]
[310215047,1704402649364,-500.0,0.00039178,7]
[310215049,1704402649373,-500.0,0.00039178,7]
[310215051,1704402649383,-500.0,0.00039178,7]
[310215053,1704402649394,-672.06,0.00039178,7]
[310215055,1704402649403,-500.0,0.00039178,7]
[310215057,1704402649413,-878.43,0.00039178,7]
[310215058,1704402649422,-2456.29,0.00039178,7]
[310215060,1704402649433,-500.59381504,0.00039178,7]
[310215062,1704402649442,-831.29,0.00039178,7]
[310215064,1704402649452,-500.0,0.00039178,7]
[310215066,1704402649462,-505.21001314,0.00039178,7]
[310215068,1704402649472,-500.0,0.00039178,7]
[310215071,1704402649483,-500.0,0.00039178,7]
[310215072,1704402649494,-467.32895842,0.00039178,7]
[310215074,1704402649503,-500.0,0.00039178,7]
[310215076,1704402649512,-500.0,0.00039178,7]
[310215078,1704402649522,-150.0,0.00039178,7]
[310215080,1704402649531,-1273.76,0.00039178,7]
[310215082,1704402649540,-500.0,0.00039178,7]
[310215084,1704402649549,-292.97453826,0.00039178,7]
[310215086,1704402649559,-688.4,0.00039178,7]
[310215088,1704402649568,-566.80669361,0.00039178,7]
[310215090,1704402649577,-500.0,0.00039178,7]
[310215092,1704402649588,-500.0,0.00039178,7]
[310215094,1704402649598,-806.11,0.00039178,7]
[310215096,1704402649607,-500.0,0.00039178,7]
[310215098,1704402649616,-807.33,0.00039178,7]
[310215100,1704402649625,-500.0,0.00039178,7]
[310215102,1704402649635,-3571.72,0.00039178,7]
[310215104,1704402649644,-500.0,0.00039178,7]
[310215106,1704402649653,-10711.78,0.00039178,7]
[310215108,1704402649662,-25933.85,0.00039178,7]
[310215110,1704402649672,-500.0,0.00039178,7]
[310215112,1704402649681,-500.0,0.00039178,7]
[310215113,1704402649690,-500.0,0.00039178,7]
[310215115,1704402649703,-500.0,0.00039178,7]
[310215117,1704402649712,-500.0,0.00039178,7]
[310215120,1704402649722,-500.0,0.00039178,7]
[310215122,1704402649731,-500.0,0.00039178,7]
[310215123,1704402649741,-500.0,0.00039178,7]
[310215125,1704402649751,-500.0,0.00039178,7]
[310215128,1704402649761,-1808.05,0.00039178,7]
[310215129,1704402649774,-500.0,0.00039178,7]
[310215138,1704402649854,-1587.08,0.00039178,7]
[310215140,1704402649864,-500.0,0.00039178,7]
[310215142,1704402649873,-4004.34,0.00039178,7]
[310215145,1704402649883,-500.0,0.00039178,7]
[310215146,1704402649892,-2074.54,0.00039178,7]
[310215148,1704402649901,-18129.08,0.00039178,7]
[310215150,1704402649910,-500.0,0.00039178,7]
[310215152,1704402649919,-500.0,0.00039178,7]
[310215154,1704402649928,-500.0,0.00039178,7]
[310215156,1704402649938,-723.52,0.00039178,7]
[310215158,1704402649948,-1985.08,0.00039178,7]
[310215160,1704402649957,-1103.74,0.00039178,7]
[310215162,1704402649966,-2205.5,0.00039178,7]
[310215164,1704402649976,-500.0,0.00039178,7]
[310215166,1704402649985,-500.0,0.00039178,7]
[310215168,1704402649994,-500.0,0.00039178,7]
[310215170,1704402650003,-500.0,0.00039178,7]
[310215172,1704402650013,-500.0,0.00039178,7]
[310215174,1704402650023,-481.12848996,0.00039178,7]
[310215176,1704402650032,-673.76,0.00039178,7]
[310215178,1704402650042,-500.0,0.00039178,7]
[310215180,1704402650052,-10104.4,0.00039178,7]
[310215182,1704402650062,-574.0,0.00039178,7]
[310215184,1704402650071,-500.0,0.00039178,7]
[310215186,1704402650081,-3161.68,0.00039178,7]
[310215188,1704402650091,-520.08886712,0.00039178,7]
[310215190,1704402650100,-500.0,0.00039178,2]
[310215192,1704402650109,-319.57377231,0.00039178,7]
[310215193,1704402650119,-6686.95,0.00039178,7]
[310215195,1704402650128,-505.04719697,0.00039178,7]
[310215197,1704402650139,-500.0,0.00039178,7]
[310215199,1704402650148,-500.0,0.00039178,7]
[310215201,1704402650157,-1236.2,0.00039178,7]
[310215203,1704402650167,-500.0,0.00039178,7]
[310215205,1704402650176,-440.20682695,0.00039178,7]
[310215207,1704402650185,-500.0,0.00039178,7]
[310215209,1704402650196,-10000.0,0.000393,60]
[310215211,1704402650205,-150.0,0.000394,17]
[310215213,1704402650214,-200.13943,0.000394,11]
[310215215,1704402650223,-500.0,0.00039452,7]
[310215217,1704402650232,-500.0,0.00039452,7]
[310215219,1704402650241,-500.0,0.00039452,7]
[310215220,1704402650250,-500.0,0.00039452,7]
[310215222,1704402650259,-500.0,0.00039452,7]
[310215224,1704402650268,-500.0,0.00039452,7]
[310215226,1704402650278,-1019.78,0.00039452,7]
[310215228,1704402650288,-500.0,0.00039452,7]
[310215230,1704402650298,-500.0,0.00039452,7]
[310215232,1704402650308,-833.25,0.00039452,7]
[310215234,1704402650317,-500.0,0.00039452,7]
[310215236,1704402650326,-500.0,0.00039452,7]
[310215238,1704402650336,-500.0,0.00039452,7]
[310215240,1704402650346,-1197.4,0.00039452,7]
[310215242,1704402650356,-500.0,0.00039452,7]
[310215244,1704402650365,-531.15,0.00039452,2]
[310215246,1704402650374,-500.0,0.00039452,7]
[310215248,1704402650384,-500.0,0.00039452,7]
[310215250,1704402650395,-500.0,0.00039452,7]
[310215252,1704402650404,-500.0,0.00039452,7]
[310215254,1704402650414,-545.36,0.00039452,7]
[310215256,1704402650424,-500.0,0.00039452,7]
[310215258,1704402650434,-500.0,0.00039452,7]
[310215260,1704402650445,-827.45,0.00039452,7]
[310215262,1704402650455,-500.0,0.00039452,7]
[310215264,1704402650464,-500.0,0.00039452,7]
[310215266,1704402650474,-581.62094742,0.00039452,7]
[310215268,1704402650483,-500.0,0.00039452,7]
[310215270,1704402650492,-500.0,0.00039452,7]
[310215272,1704402650502,-500.0,0.00039452,7]
[310215274,1704402650511,-1245.07,0.00039452,7]
[310215276,1704402650520,-500.0,0.00039452,7]
[310215278,1704402650530,-825.19,0.00039452,7]
[310215280,1704402650539,-500.0,0.00039452,7]
[310215282,1704402650549,-516.13624976,0.00039452,7]
[310215284,1704402650558,-504.9345272,0.00039452,7]
[310215286,1704402650568,-516.67528171,0.00039452,7]
[310215288,1704402650578,-514.12863622,0.00039452,7]
[310215290,1704402650589,-2473.66,0.00039452,7]
[310215292,1704402650599,-500.0,0.00039452,7]
[310215294,1704402650608,-500.0,0.00039452,7]
[310215296,1704402650617,-689.61,0.00039452,7]
[310215298,1704402650627,-500.0,0.00039452,7]
[310215300,1704402650636,-508.70862764,0.00039452,7]
[310215302,1704402650646,-500.0,0.00039452,7]
[310215304,1704402650655,-500.0,0.00039452,7]
[310215305,1704402650664,-500.0,0.00039452,7]
[310215307,1704402650673,-1976.56,0.00039452,2]
[310215309,1704402650683,-500.0,0.00039452,7]
[310215311,1704402650693,-500.0,0.00039452,7]
[310215313,1704402650703,-500.0,0.00039452,7]
[310215315,1704402650712,-500.0,0.00039452,7]
[310215317,1704402650721,-500.0,0.00039452,2]
[310215319,1704402650730,-1936.31,0.00039452,7]
[310215321,1704402650741,-961.52,0.00039452,7]
[310215323,1704402650751,-1091.4,0.00039452,7]
[310215325,1704402650761,-500.0,0.00039452,7]
[310215327,1704402650770,-500.0,0.00039452,7]
[310215329,1704402650779,-500.0,0.00039452,7]
[310215331,1704402650788,-1512.12,0.00039452,7]
[310215333,1704402650798,-500.0,0.00039452,7]
[310215335,1704402650807,-500.0,0.00039452,7]
[310215336,1704402650816,-661.26,0.00039452,7]
[310215338,1704402650825,-705.46,0.00039452,7]
[310215340,1704402650835,-418.06439526,0.00039452,7]
[310215353,1704402650965,-84.65560474,0.00039452,7]
[310215355,1704402650974,-500.0,0.00039452,7]
[310215357,1704402650984,-804.09,0.00039452,7]
[310215358,1704402650993,-500.0,0.00039452,7]
[310215360,1704402651003,-500.0,0.00039452,7]
[310215362,1704402651013,-511.28786546,0.00039452,7]
[310215365,1704402651023,-500.0,0.00039452,7]
[310215367,1704402651033,-500.0,0.00039452,7]
[310215369,1704402651043,-500.0,0.00039452,7]
[310215370,1704402651053,-500.0,0.00039452,7]
[310215373,1704402651063,-1531.92,0.00039452,7]
[310215375,1704402651072,-500.0,0.00039452,7]
[310215376,1704402651082,-500.0,0.00039452,7]
[310215378,1704402651091,-500.0,0.00039452,7]
[310215380,1704402651100,-687.47,0.00039452,7]
[310215382,1704402651109,-500.0,0.00039452,7]
[310215384,1704402651118,-500.0,0.00039452,7]
[310215386,1704402651127,-528.7,0.00039452,7]
[310215388,1704402651137,-500.0,0.00039452,7]
[310215390,1704402651146,-1000.0,0.00039452,2]
[310215392,1704402651156,-500.0,0.00039452,7]
[310215394,1704402651165,-500.0,0.00039452,7]
[310215396,1704402651174,-577.5,0.00039452,7]
[310215398,1704402651183,-779.47,0.00039452,7]
[310215400,1704402651193,-500.0,0.00039452,7]
[310215402,1704402651204,-500.0,0.00039452,7]
[310215404,1704402651214,-500.0,0.00039452,7]
[310215406,1704402651223,-500.0,0.00039452,7]
[310215408,1704402651232,-500.0,0.00039452,7]
[310215418,1704402651318,-572.68,0.00039452,7]
[310215420,1704402651328,-876.01,0.00039452,7]
[310215422,1704402651337,-500.0,0.00039452,7]
[310215424,1704402651346,-500.0,0.00039452,7]
[310215426,1704402651355,-500.0,0.00039452,7]
[310215428,1704402651364,-582.03418296,0.00039452,7]
[310215430,1704402651373,-534.62,0.00039452,7]
[310215432,1704402651383,-864.97,0.00039452,7]
[310215434,1704402651393,-1586.66,0.00039452,7]
[310215436,1704402651406,-500.0,0.00039452,7]
[310215438,1704402651416,-257.38950685,0.00039452,7]
[310215440,1704402651426,-872.84,0.00039452,7]
[310215442,1704402651437,-500.0,0.00039452,7]
[310215444,1704402651449,-3351.02,0.00039452,7]
[310215446,1704402651459,-500.0,0.00039452,7]
[310215448,1704402651468,-540.05784982,0.00039452,7]
[310215450,1704402651478,-500.0,0.00039452,7]
[310215452,1704402651489,-562.12,0.00039452,7]
[310215454,1704402651499,-4359.94,0.00039452,7]
[310215456,1704402651508,-500.0,0.00039452,7]
[310215458,1704402651517,-500.0,0.00039452,7]
[310215460,1704402651527,-500.0,0.00039452,7]
[310215462,1704402651536,-672.06,0.00039452,7]
[310215464,1704402651547,-500.0,0.00039452,7]
[310215466,1704402651556,-878.43,0.00039452,7]
[310215468,1704402651565,-2456.29,0.00039452,7]
[310215470,1704402651574,-831.29,0.00039452,7]
[310215472,1704402651583,-500.0,0.00039452,7]
[310215473,1704402651592,-500.0,0.00039452,7]
[310215475,1704402651602,-500.0,0.00039452,7]
[310215478,1704402651611,-606.17498984,0.00039452,7]
[310215480,1704402651623,-500.0,0.00039452,7]
[310215482,1704402651632,-205.00547713,0.00039452,7]
[310215484,1704402651641,-1273.76,0.00039452,7]
[310215486,1704402651650,-500.0,0.00039452,7]
[310215488,1704402651659,-688.4,0.00039452,7]
[310215489,1704402651668,-150.30238206,0.00039452,7]
[310215491,1704402651677,-500.0,0.00039452,7]
[310215493,1704402651686,-806.11,0.00039452,7]
[310215495,1704402651696,-500.0,0.00039452,7]
[310215497,1704402651705,-807.33,0.00039452,7]
[310215499,1704402651716,-500.0,0.00039452,7]
[310215501,1704402651725,-3571.72,0.00039452,7]
[310215503,1704402651735,-500.0,0.00039452,7]
[310215505,1704402651745,-10711.78,0.00039452,7]
[310215508,1704402651755,-7750.49418143,0.00039452,7]
[310215510,1704402651768,-3343.10784829,0.00039452,7]
[310215528,1704402651933,-1214.02140757,0.00038904,7]
[310215530,1704402651945,-1224.70859243,0.00038904,7]
[310215532,1704402651954,-2438.73,0.00039178,7]
[310215534,1704402651963,-14840.24797028,0.00039452,7]
[310215536,1704402651972,-500.0,0.00039452,7]
[310215538,1704402651981,-500.0,0.00039452,7]
[310215540,1704402651990,-500.0,0.00039452,7]
[310215542,1704402651999,-500.0,0.00039452,7]
[310215544,1704402652008,-396.79700967,0.00039452,7]
[310215546,1704402652017,-500.0,0.00039452,7]
[310215548,1704402652026,-500.0,0.00039452,7]
[310215550,1704402652035,-500.0,0.00039452,7]
[310215552,1704402652044,-500.0,0.00039452,7]
[310215554,1704402652053,-1808.05,0.00039452,7]
[310215556,1704402652062,-488.07271222,0.00039452,7]
[310215558,1704402652071,-1587.08,0.00039452,7]
[310215560,1704402652080,-500.0,0.00039452,7]
[310215562,1704402652089,-4004.34,0.00039452,7]
[310215564,1704402652098,-500.0,0.00039452,7]
[310215566,1704402652107,-2074.54,0.00039452,7]
[310215568,1704402652117,-16094.21513419,0.00039452,7]
[310215576,1704402652183,-3266.09,0.00038346,3]
[310215578,1704402652192,-2034.86486581,0.00039452,7]
[310215580,1704402652203,-500.0,0.00039452,7]
[310215582,1704402652213,-500.0,0.00039452,7]
[310215584,1704402652222,-500.0,0.00039452,7]
[310215586,1704402652231,-723.52,0.00039452,7]
[310215588,1704402652240,-1985.08,0.00039452,7]
[310215590,1704402652249,-1103.74,0.00039452,7]
[310215592,1704402652257,-2205.5,0.00039452,7]
[310215594,1704402652266,-500.0,0.00039452,7]
[310215596,1704402652276,-500.0,0.00039452,7]
[310215598,1704402652286,-500.0,0.00039452,7]
[310215600,1704402652295,-500.0,0.00039452,7]
[310215602,1704402652304,-500.0,0.00039452,7]
[310215604,1704402652314,-673.76,0.00039452,7]
[310215606,1704402652323,-500.0,0.00039452,7]
[310215608,1704402652332,-10104.4,0.00039452,7]
[310215610,1704402652341,-574.0,0.00039452,7]
[310215612,1704402652350,-289.35176777,0.00039452,7]
[310215614,1704402652359,-3161.68,0.00039452,7]
[310215616,1704402652369,-500.0,0.00039452,2]
[310215618,1704402652378,-6686.95,0.00039452,7]
[310215620,1704402652388,-615.55634576,0.00039452,7]
[310215622,1704402652397,-500.0,0.00039452,7]
[310215624,1704402652407,-1236.2,0.00039452,7]
[310215626,1704402652416,-500.0,0.00039452,7]
[310215628,1704402652426,-500.0,0.00039452,7]
[310215630,1704402652435,-2438.73,0.00039452,7]
[310215632,1704402652445,-3860.691518,0.0003963,2]
[310215634,1704402652455,-500.0,0.00039726,7]
[310215636,1704402652464,-500.0,0.00039726,7]
[310215638,1704402652474,-500.0,0.00039726,7]
[310215640,1704402652483,-500.0,0.00039726,7]
[310215642,1704402652494,-500.0,0.00039726,7]
[310215644,1704402652503,-500.0,0.00039726,7]
[310215646,1704402652513,-1019.78,0.00039726,7]
[310215648,1704402652522,-500.0,0.00039726,7]
[310215650,1704402652531,-500.0,0.00039726,7]
[310215652,1704402652541,-833.25,0.00039726,7]
[310215654,1704402652550,-500.0,0.00039726,7]
[310215656,1704402652560,-500.0,0.00039726,7]
[310215658,1704402652569,-500.0,0.00039726,7]
[310215660,1704402652579,-1197.4,0.00039726,7]
[310215662,1704402652589,-500.0,0.00039726,7]
[310215664,1704402652599,-531.15,0.00039726,2]
[310215666,1704402652609,-280.0,0.00039726,7]
[310215668,1704402652618,-328.86541999,0.00039726,7]
[310215670,1704402652627,-500.0,0.00039726,7]
[310215672,1704402652636,-500.0,0.00039726,7]
[310215674,1704402652646,-545.36,0.00039726,7]
[310215676,1704402652656,-500.0,0.00039726,7]
[310215678,1704402652665,-500.0,0.00039726,7]
[310215680,1704402652674,-827.45,0.00039726,7]
[310215690,1704402652753,-500.0,0.00039726,7]
[310215692,1704402652763,-500.0,0.00039726,7]
[310215694,1704402652772,-500.0,0.00039726,7]
[310215696,1704402652782,-500.0,0.00039726,7]
[310215698,1704402652791,-500.0,0.00039726,7]
[310215700,1704402652800,-1245.07,0.00039726,7]
[310215702,1704402652810,-500.0,0.00039726,7]
[310215704,1704402652818,-825.19,0.00039726,7]
[310215706,1704402652827,-500.0,0.00039726,7]
[310215708,1704402652837,-2473.66,0.00039726,7]
[310215710,1704402652846,-500.0,0.00039726,7]
[310215712,1704402652855,-500.0,0.00039726,7]
[310215714,1704402652864,-689.61,0.00039726,7]
[310215716,1704402652873,-500.0,0.00039726,7]
[310215718,1704402652884,-500.0,0.00039726,7]
[310215720,1704402652893,-500.0,0.00039726,7]
[310215722,1704402652903,-1976.56,0.00039726,2]
[310215724,1704402652912,-500.0,0.00039726,7]
[310215726,1704402652921,-500.0,0.00039726,7]
[310215728,1704402652930,-500.0,0.00039726,7]
[310215729,1704402652939,-500.0,0.00039726,7]
[310215730,1704402652949,-500.0,0.00039726,2]
[310215731,1704402652960,-1936.31,0.00039726,7]
[310215732,1704402652969,-961.52,0.00039726,7]
[310215733,1704402652978,-1091.4,0.00039726,7]
[310215734,1704402652987,-500.0,0.00039726,7]
[310215735,1704402652996,-500.0,0.00039726,7]
[310215736,1704402653004,-500.0,0.00039726,7]
[310215737,1704402653013,-1512.12,0.00039726,7]
[310215738,1704402653022,-359.52944806,0.00039726,7]
[310215739,1704402653032,-500.0,0.00039726,7]
[310215740,1704402653041,-661.26,0.00039726,7]
[310215741,1704402653050,-705.46,0.00039726,7]
[310215742,1704402653059,-502.72,0.00039726,7]
[310215743,1704402653068,-500.0,0.00039726,7]
[310215744,1704402653077,-804.09,0.00039726,7]
[310215745,1704402653086,-524.33732866,0.00039726,7]
[310215746,1704402653095,-500.0,0.00039726,7]
[310215747,1704402653104,-500.0,0.00039726,7]
[310215748,1704402653113,-601.35026654,0.00039726,7]
[310215750,1704402653122,-512.18222702,0.00039726,7]
[310215752,1704402653131,-500.0,0.00039726,7]
[310215754,1704402653141,-1531.92,0.00039726,7]
[310215756,1704402653149,-500.0,0.00039726,7]
[310215758,1704402653158,-500.0,0.00039726,7]
[310215760,1704402653168,-500.0,0.00039726,7]
[310215762,1704402653177,-687.47,0.00039726,7]
[310215763,1704402653187,-500.0,0.00039726,7]
[310215765,1704402653197,-500.0,0.00039726,7]
[310215767,1704402653206,-528.7,0.00039726,7]